bitfinex/quotes_ETHUSD_20250815
["timestamp","ask_amount","ask_price","bid_price","bid_amount"]
[1755284911817,3.9436,4387.7,4387.6,3.19225034]
[1755284913137,3.9436,4387.7,4387.6,0.91310001]
[1755284913339,0.4955,4389.4,4388.4,2.27873284]
[1755284913340,0.50324292,4388.9,4388.4,2.27873284]
[1755284913544,0.50324292,4388.9,4387.6,1.23232914]
[1755284913545,2.45251491,4389.3,4388.5,3.19178258]
[1755284913847,3.823,4388.9,4388.6,3.19172982]
[1755284914047,3.823,4388.9,4388.6,0.4616]
[1755284914255,3.823,4388.9,4388.6,0.9131]
[1755284914422,3.823,4388.9,4388.7,0.9131]
[1755284914821,3.823,4388.9,4388.2,2.27880197]
[1755284915047,3.823,4388.9,4388.3,2.27874434]
[1755284915247,3.823,4388.9,4388.4,2.27872973]
[1755284915461,3.823,4388.9,4387.6,2.27910376]
[1755284915462,3.823,4388.9,4388.5,0.9131]
[1755284916253,3.823,4388.9,4388.6,0.4339]
[1755284917457,3.823,4388.9,4388.7,2.27853871]
[1755284917638,3.823,4388.9,4388.8,0.9333]
[1755284917847,3.823,4388.9,4388.8,3.21182716]
[1755284918180,4.2053,4388.9,4387.9,0.9333]
[1755284918468,2.30132867,4388.8,4387.6,2.27910863]
[1755284918665,2.27858222,4388.7,4387.8,2.27901169]
[1755284918963,2.27853771,4388.8,4387.9,2.27897799]
[1755284919123,3.15476556,4388.8,4387.9,2.27897799]
[1755284919725,0.0227915,4388.7,4387.6,1e-08]
[1755284920025,2.27863099,4388.6,4387.6,1e-08]
[1755284920227,0.0227915,4388.5,4387.6,2.2791452]
[1755284920427,3.819,4388.4,4387.6,1e-08]
[1755284920678,0.40697065,4388.3,4387.6,1e-08]
[1755284920843,2.27909838,4387.7,4387.6,1e-08]
[1755284921042,6.12088988,4387.7,4387.6,1e-08]
[1755284921242,7.01569838,4387.7,4387.6,1e-08]
[1755284922428,4.2716,4387.7,4387.6,1e-08]
[1755284922632,4.47405788,4387.7,4387.6,1e-08]
[1755284923457,4.58765788,4387.7,4387.6,1e-08]
[1755284923961,3.9326,4387.7,4387.6,1e-08]
[1755284924733,0.1136,4387.7,4387.6,1e-08]
[1755284924930,3.9306,4387.7,4387.6,1e-08]
[1755284926082,6.20969838,4387.7,4387.6,1e-08]
[1755284926376,3.9306,4387.7,4387.6,1e-08]
[1755284926571,4.77946105,4387.7,4387.6,1e-08]
[1755284927297,3.9306,4387.7,4387.6,1e-08]
[1755284927493,3.9306,4387.7,4387.6,0.93330001]
[1755284928194,3.9306,4387.7,4387.6,3.21245034]
[1755284928401,3.815,4388.5,4388.0,2.2789339]
[1755284928567,3.815,4388.5,4387.6,1.04690001]
[1755284928568,3.815,4388.5,4388.4,2.27873484]
[1755284928972,3.815,4388.5,4388.4,3.21203484]
[1755284929175,3.815,4388.5,4388.4,0.4339]
[1755284929368,3.815,4388.5,4388.2,0.1136]
[1755284930059,3.815,4388.5,4388.3,2.27874401]
[1755284930255,3.815,4388.5,4388.4,2.27873484]
[1755284930455,3.815,4388.5,4388.4,2.71263484]
[1755284930655,3.815,4388.5,4388.4,3.21203484]
[1755284930852,0.002,4388.6,4388.5,2.27868292]
[1755284931057,0.002,4388.6,4388.5,3.21198292]
[1755284934226,0.002,4388.6,4388.5,2.27868292]
[1755284935018,0.002,4388.6,4388.5,3.21198292]
[1755284935712,0.002,4388.6,4388.5,3.32558292]
[1755284936572,0.002,4388.6,4388.5,6.88601881]
[1755284936777,0.002,4389.1,4389.0,2.27842333]
[1755284937014,0.002,4389.4,4389.2,2.27831951]
[1755284937208,0.002,4389.4,4389.3,2.2782676]
[1755284937525,0.002,4389.4,4389.3,10.04335027]
[1755284937731,1e-08,4389.4,4389.3,11.49193691]
[1755284937877,1e-08,4389.4,4389.3,11.60553691]
[1755284938073,1e-08,4389.4,4389.3,8.34653691]
[1755284938279,1e-08,4389.4,4389.3,7.79653691]
[1755284939348,1e-08,4389.4,4389.3,11.60453691]
[1755284940344,0.002,4391.2,4389.4,3.0]
[1755284940500,0.002,4391.2,4390.7,2.27754116]
[1755284940827,0.002,4391.2,4390.7,2.39114116]
[1755284941026,0.002,4391.2,4390.7,6.32444116]
[1755284941230,1e-08,4390.8,4390.7,6.88487705]
[1755284941533,0.002,4391.2,4391.1,2.27733369]
[1755284941738,0.002,4391.6,4391.5,2.27712626]
[1755284941949,0.002,4391.9,4391.5,10.38856707]
[1755284942158,0.002,4392.8,4391.5,10.38856707]
[1755284942159,0.002,4392.8,4392.7,2.2765042]
[1755284942297,0.002,4392.8,4392.7,2.29926924]
[1755284942636,0.002,4392.8,4392.7,5.9924327]
[1755284942838,0.002,4392.8,4392.7,6.1060327]
[1755284944507,0.02,4393.4,4393.3,6.59029967]
[1755284944694,0.02,4393.4,4393.3,5.38979329]
[1755284945089,0.02,4393.4,4393.3,6.32309329]
[1755284945835,0.02,4393.4,4393.3,9.19179329]
[1755284946318,0.02,4393.4,4393.3,10.15239329]
[1755284947420,0.02,4393.4,4393.3,9.19179329]
[1755284947660,0.02,4393.4,4393.3,5.38979329]
[1755284947977,0.02,4393.4,4386.7,2.8530623]
[1755284947978,0.9479,4393.4,4392.0,3.801]
[1755284948116,0.9479,4393.4,4392.7,2.27650385]
[1755284948117,0.0227915,4393.3,4392.7,2.27650385]
[1755284948322,0.32467916,4393.2,4392.2,0.4682]
[1755284948534,0.1336,4393.4,4392.6,0.1136]
[1755284948722,0.02,4393.4,4393.2,2.2762451]
[1755284949039,0.02,4393.4,4393.3,2.38979329]
[1755284949240,0.02,4393.4,4393.3,4.29295713]
[1755284949464,0.02,4393.4,4393.3,7.29295713]
[1755284950662,0.02,4393.4,4393.3,0.1136]
[1755284950824,0.02,4393.4,4393.3,2.38979329]
[1755284951027,0.02,4393.4,4393.3,0.1136]
[1755284951445,0.02,4393.4,4393.3,2.38979329]
[1755284951960,0.022,4393.4,4393.3,2.38979329]
[1755284952459,0.022,4393.4,4393.3,6.81700143]
[1755284952623,0.022,4393.4,4393.3,7.36700143]
[1755284953028,0.022,4393.4,4393.3,6.81700143]
[1755284953257,0.022,4393.4,4393.3,5.85640143]
[1755284953568,0.022,4393.4,4393.3,5.38979329]
[1755284953774,0.022,4393.4,4393.3,0.1136]
[1755284954141,0.9499,4393.4,4393.3,0.1136]
[1755284954473,0.9499,4393.4,4392.0,3.796]
[1755284954657,0.1136,4393.1,4392.8,2.2764019]
[1755284954836,0.022,4393.4,4392.9,2.27635741]
[1755284955172,0.1356,4393.4,4392.8,0.1136]
[1755284955672,0.1356,4393.4,4392.8,2.39003139]
[1755284955966,0.1356,4393.4,4392.9,2.27640055]
[1755284956170,0.1356,4393.4,4392.8,0.1136]
[1755284956535,0.1356,4393.4,4393.0,2.27633431]
[1755284956768,0.1356,4393.4,4392.4,2.27665968]
[1755284956769,0.9279,4393.3,4392.4,2.27665968]
[1755284957069,0.1136,4392.9,4392.7,2.27646002]
[1755284957284,0.1136,4392.9,4392.5,2.27656896]
[1755284957484,0.1136,4392.9,4392.8,2.27645237]
[1755284958498,0.022,4393.4,4392.6,2.27654408]
[1755284958499,0.022,4393.4,4393.3,2.27619329]
[1755284959568,0.022,4393.4,4393.2,2.27623136]
[1755284959777,0.022,4393.4,4392.8,0.1136]
[1755284959778,0.022,4393.4,4393.3,2.27619329]
[1755284959977,0.022,4393.4,4392.8,0.1136]
[1755284959978,0.9499,4393.4,4392.9,2.27639424]
[1755284960194,0.9279,4393.3,4392.8,0.1136]
[1755284960389,0.9279,4393.3,4392.8,2.39003338]
[1755284960598,0.35595465,4393.4,4392.8,2.39003338]
[1755284960599,0.1136,4393.0,4392.8,2.27643338]
[1755284960763,0.1136,4393.0,4392.7,2.27650363]
[1755284961166,0.1136,4393.0,4392.8,2.27644958]
[1755284961402,0.1136,4393.0,4392.9,2.27640055]
[1755284961775,0.1136,4393.0,4392.8,2.27643763]
[1755284962199,0.1136,4393.0,4392.4,0.1136]
[1755284962200,0.1136,4393.0,4392.9,2.27640055]
[1755284962401,0.47641692,4393.2,4393.0,2.27632831]
[1755284962569,0.47641692,4393.2,4392.7,2.2764914]
[1755284962570,0.47641692,4393.3,4392.9,2.27635202]
[1755284962767,0.47641692,4393.2,4393.0,2.2763273]
[1755284962970,0.47641692,4393.3,4392.9,2.27638877]
[1755284963167,0.47641692,4393.3,4260.0,0.11]
[1755284963168,1.40431692,4393.2,4391.6,0.684188]
[1755284963368,1.40431692,4393.2,4390.6,2.27856307]
[1755284963369,0.599859,4392.5,4390.7,2.27754116]
[1755284963702,0.1136,4391.8,4391.7,2.27702256]
[1755284963908,0.59001692,4391.8,4391.7,2.27702256]
[1755284964068,0.47641692,4391.8,4391.7,3.69303433]
[1755284964269,0.599859,4392.5,4392.3,2.27671151]
[1755284964468,0.47850453,4392.4,4391.7,0.45541177]
[1755284964805,4.389859,4392.9,4392.7,2.27650071]
[1755284964806,3.9036,4392.9,4392.7,2.27650071]
[1755284965100,0.4785033,4392.8,4392.7,2.27650071]
[1755284965605,0.4785033,4392.8,4392.3,0.1136]
[1755284965606,0.4785033,4392.8,4392.6,2.27655346]
[1755284965768,0.4785033,4392.7,4392.4,2.2766551]
[1755284966098,3.79,4392.8,4392.4,2.2766551]
[1755284966099,1.0783623,4392.6,4392.5,2.27660785]
[1755284966597,1.0783623,4392.6,4392.4,2.27662052]
[1755284966899,0.4785033,4392.5,4392.4,2.27665968]
[1755284967287,1.07917315,4392.5,4392.4,2.27665968]
[1755284968101,1.07917315,4392.5,4392.4,3.81766045]
[1755284968907,0.4785033,4392.5,4392.4,3.81766045]
[1755284969102,0.7994859,4392.8,4392.7,2.2765042]
[1755284969279,1.19943296,4392.9,4392.8,2.27645237]
[1755284969486,1.68109678,4392.9,4392.8,2.27645237]
[1755284970698,0.48166382,4392.9,4392.8,2.27645237]
[1755284970894,1.28436753,4392.9,4392.8,2.27645237]
[1755284971098,0.48166382,4392.9,4392.8,2.27645237]
[1755284971706,1.28436753,4392.9,4392.8,2.27645237]
[1755284972206,0.48166382,4392.9,4392.7,0.1136]
[1755284972375,1.28442418,4392.8,4392.7,2.39009354]
[1755284972575,1.28442418,4392.8,4392.7,2.27649354]
[1755284973106,1.28442418,4392.8,4392.4,0.1136]
[1755284973312,1.28442418,4392.8,4392.4,2.39025968]
[1755284973313,0.60205191,4392.5,4392.4,2.39025968]
[1755284973515,1.08371573,4392.5,4392.4,2.39025968]
[1755284973717,1.08371573,4392.5,4392.4,0.1136]
[1755284974018,0.94016382,4392.5,4392.2,0.001]
[1755284974213,5.06930238,4392.4,4392.3,2.27671151]
[1755284974915,1.28430238,4392.4,4392.3,2.27671151]
[1755284975115,1.28430238,4392.4,4392.3,3.21172285]
[1755284975116,1.08364163,4392.4,4392.3,3.21172285]
[1755284975278,1.08363946,4392.4,4392.3,3.32532285]
[1755284975482,1.08363946,4392.4,4392.3,3.81772285]
[1755284975779,0.48166382,4392.4,4392.3,3.35091151]
[1755284975988,0.48166382,4392.4,4392.3,2.39031151]
[1755284976611,0.48166382,4392.4,4392.3,3.33311151]
[1755284978016,0.48166382,4392.4,4392.3,2.39031151]
[1755284978520,1.08363946,4392.4,4392.3,2.39031151]
[1755284979329,0.48166382,4392.4,4392.3,2.39031151]
[1755284979549,1.08363946,4392.4,4392.3,2.39031151]
[1755284980102,0.48166382,4392.4,4392.3,2.39031151]
[1755284980536,5.29453946,4392.4,4392.3,0.1136]
[1755284980692,5.29453946,4392.4,4392.2,0.001]
[1755284980693,6.68239933,4392.4,4392.2,0.001]
[1755284981007,1.37116382,4392.3,4392.2,0.001]
[1755284981406,6.87972696,4392.3,4392.2,0.001]
[1755284981592,2.27691887,4391.9,4391.8,0.001]
[1755284981794,7.64041081,4391.9,4391.8,0.001]
[1755284981994,8.50711931,4391.9,4391.8,0.001]
[1755284983020,3.83661931,4391.9,4391.8,0.001]
[1755284983358,4.37626382,4391.9,4391.8,0.001]
[1755284983494,4.26266382,4391.9,4391.8,0.001]
[1755284983696,4.26266382,4391.9,4391.8,2.27797071]
[1755284984390,4.26266382,4391.9,4391.8,2.39157071]
[1755284984788,0.48166382,4391.9,4391.8,2.39157071]
[1755284984990,0.0427,4392.2,4392.0,2.27686703]
[1755284984991,0.48166382,4392.1,4392.0,2.27686703]
[1755284985189,0.0427,4392.2,4392.1,2.39041519]
[1755284986818,0.0427,4392.2,4392.1,3.33321519]
[1755284987020,0.0427,4392.2,4392.1,3.89432744]
[1755284988377,0.0427,4392.2,4392.1,2.95152744]
[1755284988541,0.0427,4392.2,4392.1,2.39041519]
[1755284989513,0.0427,4392.2,4392.1,2.84671519]
[1755284990328,0.0427,4392.2,4392.1,3.33321519]
[1755284991130,0.0427,4392.2,4392.1,2.39041519]
[1755284992529,0.0427,4392.2,4392.1,6.33321519]
[1755284992731,3.777,4392.8,4392.7,2.2765042]
[1755284992947,1e-08,4393.0,4392.9,2.27640055]
[1755284993129,1e-08,4393.0,4392.9,2.29916455]
[1755284993334,1e-08,4393.0,4392.9,6.79196455]
[1755284993509,1e-08,4393.0,4392.9,11.84000743]
[1755284994895,1e-08,4393.0,4392.9,11.95360743]
[1755284995735,1e-08,4393.5,4393.4,2.27614148]
[1755284995940,1e-08,4393.5,4393.4,6.60014148]
[1755284996249,0.022,4394.4,4394.2,2.27572709]
[1755284996430,0.022,4394.4,4394.3,5.8256753]
[1755284996431,1e-08,4394.4,4394.3,5.8256753]
[1755284996620,1e-08,4394.4,4394.3,6.8820753]
[1755284998812,1e-08,4394.4,4394.3,5.3892753]
[1755284999017,1e-08,4394.4,4394.3,2.3892753]
[1755285000245,1e-08,4394.4,4394.3,6.92677554]
[1755285000466,1e-08,4394.4,4394.3,11.41957554]
[1755285001249,1e-08,4394.4,4394.3,6.15577554]
[1755285001447,1e-08,4394.4,4394.3,9.92577554]
[1755285002251,1e-08,4394.4,4394.3,11.41857554]
[1755285002416,0.02,4395.4,4394.7,0.55]
[1755285002617,0.02,4395.4,4395.3,2.38875755]
[1755285002832,0.00494768,4396.3,4396.2,2.27469177]
[1755285003250,0.00494768,4396.3,4396.2,2.38829177]
[1755285003427,0.00494768,4396.3,4396.2,0.1136]
[1755285003757,0.89444768,4396.3,4396.0,2.27476015]
[1755285004055,0.00494768,4396.3,4396.1,2.27474352]
[1755285004230,0.00494768,4396.3,4396.2,0.1136]
[1755285004644,0.46654768,4396.3,4396.2,2.27469177]
[1755285004965,0.46654768,4396.3,4395.4,3.0]
[1755285004966,0.89444768,4396.3,4396.0,0.1136]
[1755285005115,0.00494768,4396.3,4396.0,0.1136]
[1755285005319,0.00494768,4396.3,4395.1,2.27522061]
[1755285005320,0.002,4395.3,4393.2,2.27622519]
[1755285005521,0.4279,4395.2,4394.9,0.1136]
[1755285005748,0.4279,4395.2,4395.1,2.27526108]
[1755285005947,0.002,4395.3,4395.2,2.27520931]
[1755285006723,0.002,4395.3,4395.2,3.65356077]
[1755285006924,0.002,4395.3,4395.2,3.76716077]
[1755285007515,0.002,4395.3,4395.2,6.76716077]
[1755285008232,0.002,4395.8,4395.7,2.27495051]
[1755285008720,0.002,4395.8,4395.7,3.31185051]
[1755285008917,0.002,4395.8,4395.7,4.17053778]
[1755285009121,0.002,4395.8,4395.7,7.17053778]
[1755285009320,0.002,4395.8,4395.7,7.72053778]
[1755285009558,0.002,4395.8,4395.7,6.24723778]
[1755285009757,0.002,4395.8,4395.7,2.38855051]
[1755285010757,0.002,4395.8,4395.7,6.31185051]
[1755285011453,1e-08,4395.8,4395.7,6.86185051]
[1755285014640,1e-08,4395.8,4395.7,10.62385051]
[1755285014845,1e-08,4396.3,4396.2,2.27469177]
[1755285015045,0.02,4397.4,4396.3,0.55]
[1755285015265,0.02,4397.4,4397.3,2.38772275]
[1755285016866,0.02,4397.4,4397.3,6.86102275]
[1755285018043,1e-08,4397.4,4397.3,6.86102275]
[1755285019576,1e-08,4397.4,4397.3,10.62002275]
[1755285019784,1e-08,4397.4,4397.3,8.1504445]
[1755285020081,1e-08,4397.4,4397.3,11.9084445]
[1755285020488,0.00200001,4397.4,4397.3,10.9851445]
[1755285021188,1e-08,4397.4,4397.3,11.9084445]
[1755285022178,1e-08,4397.4,4397.3,10.9851445]
[1755285022860,1e-08,4397.4,4397.3,7.2271445]
[1755285023053,1e-08,4397.4,4397.3,2.38772275]
[1755285023373,0.92280001,4397.4,4397.3,2.38772275]
[1755285023762,1e-08,4397.4,4397.3,2.38772275]
[1755285024971,0.46350001,4397.4,4397.3,2.38772275]
[1755285025176,0.92280001,4397.4,4397.3,2.38772275]
[1755285025760,0.92280001,4397.4,4397.3,0.1136]
[1755285026187,1.24247169,4397.4,4396.5,2.27452929]
[1755285026388,1.24247169,4397.4,4396.9,2.27431391]
[1755285026389,1e-08,4397.4,4396.9,2.27431391]
[1755285026553,0.9228,4397.3,4396.8,0.1136]
[1755285026756,0.9455915,4397.2,4395.1,0.02]
[1755285026959,0.1136,4396.8,4396.3,2.2746302]
[1755285027194,0.9228,4396.7,4396.4,2.27458821]
[1755285027379,0.9228,4396.6,4396.4,2.27458821]
[1755285027690,0.9455915,4396.5,4395.1,3.774]
[1755285027988,0.1136,4396.2,4395.5,0.1136]
[1755285028158,1.24481051,4396.4,4395.5,0.1136]
[1755285028159,1.0364,4396.4,4395.5,0.1136]
[1755285028358,1.0364,4396.4,4396.1,2.274698]
[1755285028564,0.4635,4396.3,4396.2,2.27466314]
[1755285028764,0.5729,4396.4,4396.0,2.27478947]
[1755285028765,0.4593,4397.1,4396.0,3.753]
[1755285029100,1e-08,4397.4,4396.2,3.1136]
[1755285029307,1e-08,4397.4,4396.1,4.2986]
[1755285029308,1e-08,4397.4,4397.3,2.27412275]
[1755285029597,1e-08,4397.4,4397.2,2.27417447]
[1755285029798,0.4635,4397.3,4397.2,0.1136]
[1755285029997,0.9228,4397.3,4397.2,0.1136]
[1755285030189,0.9228,4397.3,4397.0,2.3878469]
[1755285030367,0.9228,4397.2,4397.0,0.1136]
[1755285030563,1.0364,4397.1,4396.6,2.27444255]
[1755285030802,1.0364,4397.1,4396.5,0.1136]
[1755285030803,0.9228,4397.0,4396.5,0.1136]
[1755285030961,0.1136,4396.8,4396.5,2.27449157]
[1755285031166,0.9228,4396.7,4396.1,0.1136]
[1755285031364,0.4635,4396.6,4396.1,0.1136]
[1755285031800,0.4635,4396.5,4396.3,2.27460056]
[1755285032003,0.4635,4396.4,4396.3,2.27460056]
[1755285033370,0.47988306,4396.7,4396.3,2.27460056]
[1755285033571,0.94338306,4396.6,4396.3,2.27460056]
[1755285033774,0.9228,4396.5,4395.6,0.001]
[1755285034007,1.0364,4396.5,4396.3,2.27459961]
[1755285034178,0.5729,4396.5,4396.4,2.27458829]
[1755285034378,0.1136,4396.5,4396.4,2.27458829]
[1755285035315,0.9228,4396.5,4396.0,2.27479526]
[1755285035476,0.9228,4396.5,4395.9,0.1136]
[1755285035477,0.9228,4396.4,4395.9,0.1136]
[1755285035676,0.9228,4396.4,4396.0,2.27479526]
[1755285035916,0.9228,4396.3,4396.1,2.27472828]
[1755285036091,0.4635,4396.2,4396.1,2.27472828]
[1755285036408,0.1136,4396.5,4396.0,2.27478218]
[1755285036574,0.1136,4396.5,4396.1,2.27474352]
[1755285036774,0.894,4396.4,4396.0,2.27478553]
[1755285036982,0.0227915,4396.3,4395.9,2.38843292]
[1755285037177,0.0227915,4396.3,4395.6,0.001]
[1755285037178,3.75,4396.2,4395.6,0.001]
[1755285037378,0.1136,4395.7,4395.6,0.001]
[1755285037674,0.59348306,4395.7,4395.6,0.001]
[1755285037878,1.60681675,4395.7,4395.6,0.001]
[1755285038310,1.12693369,4395.7,4395.6,0.001]
[1755285038618,1.60681675,4395.7,4395.6,0.001]
[1755285038911,1.12693369,4395.7,4395.6,0.001]
[1755285039121,4.50441258,4395.7,4395.6,0.001]
[1755285039280,1.60681675,4395.7,4395.6,0.001]
[1755285039624,1.62960825,4395.7,4395.6,0.001]
[1755285039978,1.60681675,4395.7,4395.6,0.001]
[1755285040213,4.87593369,4395.7,4395.6,0.001]
[1755285043187,4.41403369,4395.7,4395.6,0.001]
[1755285043387,0.1136,4395.7,4395.6,0.001]
[1755285043608,3.8616,4395.7,4395.6,0.001]
[1755285043858,4.7556,4395.7,4395.6,0.001]
[1755285045024,4.2937,4395.7,4395.6,0.001]
[1755285045201,4.7556,4395.7,4395.6,0.001]
[1755285045403,5.4609206,4395.7,4395.6,0.001]
[1755285046836,10.73587111,4395.7,4395.6,0.001]
[1755285047041,2.27515755,4395.3,4395.2,0.001]
[1755285047339,5.82520931,4395.2,4395.1,0.02]
[1755285047501,12.94507504,4395.2,4395.1,0.02]
[1755285047702,42.94507504,4395.2,4395.1,0.02]
[1755285048140,44.15793951,4395.2,4395.1,0.02]
[1755285049540,40.41193951,4395.2,4395.1,0.02]
[1755285049760,44.15793951,4395.2,4395.1,0.02]
[1755285050742,14.15793951,4395.2,4395.1,0.02]
[1755285051033,44.15793951,4395.2,4395.1,0.02]
[1755285051540,2.82546817,4394.7,4394.6,0.001]
[1755285051709,6.70685967,4394.7,4394.6,0.001]
[1755285052010,7.57806817,4394.7,4394.6,0.001]
[1755285052643,8.0568897,4394.7,4394.6,0.001]
[1755285053214,7.57806817,4394.7,4394.6,0.001]
[1755285053416,9.00106554,4394.7,4394.6,0.001]
[1755285053752,3.81206554,4394.7,4394.6,0.001]
[1755285053954,7.10002416,4394.7,4394.6,0.001]
[1755285054161,7.07723266,4394.7,4394.6,0.001]
[1755285054311,7.55613582,4394.7,4394.6,0.001]
[1755285054640,10.07723266,4394.7,4394.6,0.001]
[1755285055051,4.80176449,4394.7,4394.6,0.001]
[1755285055249,3.8576,4394.7,4394.6,0.001]
[1755285055823,7.04985967,4394.7,4394.6,0.001]
[1755285056022,10.02706817,4394.7,4394.6,0.001]
[1755285056256,11.05607385,4394.7,4394.6,0.001]
[1755285057656,11.05407385,4394.7,4394.6,0.001]
[1755285057954,11.9012742,4394.7,4394.6,0.001]
[1755285058161,11.0072742,4394.7,4394.6,0.001]
[1755285060527,12.4512742,4394.7,4394.6,0.001]
[1755285060762,3.55,4394.2,4393.7,0.001]
[1755285060961,5.93948247,4393.9,4393.7,0.001]
[1755285061166,41.71011429,4393.9,4393.7,0.001]
[1755285061326,37.70129832,4393.9,4393.7,0.001]
[1755285061531,11.44229832,4393.9,4393.7,0.001]
[1755285062055,11.32869832,4393.9,4393.7,0.001]
[1755285062253,11.44229832,4393.9,4393.7,0.001]
[1755285062849,8.44229832,4393.9,4393.7,0.001]
[1755285063670,8.87439832,4393.9,4393.7,0.001]
[1755285063984,44.25529832,4393.9,4393.7,0.001]
[1755285065376,45.05718288,4393.9,4393.7,0.001]
[1755285066135,44.4636031,4393.9,4393.7,0.001]
[1755285067079,5.82593427,4393.8,4393.7,0.001]
[1755285067285,2.82614148,4393.4,4393.3,0.001]
[1755285067434,40.27524344,4393.4,4393.3,0.001]
[1755285067637,47.94059119,4393.4,4393.3,0.001]
[1755285067837,49.14036498,4393.4,4393.3,0.001]
[1755285068069,47.94059119,4393.4,4393.3,0.001]
[1755285068375,48.75951179,4393.4,4393.3,0.001]
[1755285069081,44.52501179,4393.4,4393.3,0.001]
[1755285069287,48.26301179,4393.4,4393.3,0.001]
[1755285069439,48.75851179,4393.4,4393.3,0.001]
[1755285069793,47.81941179,4393.4,4393.3,0.001]
[1755285069989,49.18879482,4393.4,4393.3,0.001]
[1755285070170,49.18954473,4393.4,4393.3,0.001]
[1755285070564,11.84114313,4393.4,4393.3,0.9054]
[1755285070765,11.24942253,4393.4,4393.3,0.9054]
[1755285071166,11.24942253,4393.4,4393.3,0.4437]
[1755285071394,11.24942253,4393.4,4393.3,0.001]
[1755285071795,13.52556401,4393.4,4393.3,0.001]
[1755285071968,12.90955066,4393.4,4393.3,0.001]
[1755285072669,7.51242253,4393.4,4393.3,0.001]
[1755285072871,11.24942253,4393.4,4393.3,0.001]
[1755285073780,16.52556401,4393.4,4393.3,0.001]
[1755285073960,17.3252425,4393.4,4393.3,0.001]
[1755285074161,16.52556401,4393.4,4393.3,0.001]
[1755285074565,18.52566274,4393.4,4393.3,0.001]
[1755285076268,19.93391491,4393.4,4393.3,0.001]
[1755285077711,17.65577343,4393.4,4393.3,0.9054]
[1755285077874,14.45631936,4393.4,4393.3,0.9054]
[1755285078074,14.45641032,4393.4,4393.3,0.9054]
[1755285078291,14.45642411,4393.4,4393.3,0.9054]
[1755285078710,14.45642411,4393.4,4393.3,0.001]
[1755285078907,15.50772661,4393.4,4393.3,0.001]
[1755285079201,16.31027575,4393.4,4393.3,0.9054]
[1755285080308,11.07739484,4393.4,4393.3,0.9054]
[1755285081383,11.67958461,4393.4,4393.3,0.001]
[1755285082087,11.07739484,4393.4,4393.3,0.001]
[1755285082283,11.67963546,4393.4,4393.3,0.001]
[1755285084480,13.95577694,4393.4,4393.3,0.001]
[1755285084687,19.67651261,4393.4,4393.3,0.001]
[1755285085492,22.67651261,4393.4,4393.3,0.001]
[1755285085686,23.7725057,4393.4,4393.3,0.001]
[1755285085938,35.82619329,4393.3,4392.9,0.001]
[1755285086133,5.82634873,4393.0,4392.9,0.001]
[1755285086314,40.37070249,4393.0,4392.9,0.001]
[1755285086625,40.37070249,4393.0,4391.1,0.4627]
[1755285086626,5.27660785,4392.5,4391.4,0.4427]
[1755285086917,5.27660785,4392.5,4391.3,0.4627]
[1755285086918,10.6107661,4392.5,4391.8,0.9054]
[1755285087091,6.8817661,4392.5,4391.8,0.9054]
[1755285087292,7.32235559,4392.5,4392.2,0.4427]
[1755285087489,7.32235559,4392.5,4391.8,0.4627]
[1755285087490,7.32235559,4392.5,4392.4,0.9054]
[1755285087693,13.59896344,4392.5,4392.4,0.9054]
[1755285087885,13.59896344,4392.5,4392.4,0.001]
[1755285088982,5.1953978,4392.5,4392.4,0.9054]
[1755285089194,8.9243978,4392.5,4392.4,0.9054]
[1755285089902,4.59335559,4392.5,4392.4,0.9054]
[1755285090090,7.8416,4392.5,4392.4,0.9054]
[1755285090693,7.8416,4392.5,4392.4,3.18205968]
[1755285091099,7.728,4392.5,4392.4,3.73004196]
[1755285091518,7.727,4392.5,4392.4,3.73004196]
[1755285093395,7.727,4392.5,4392.4,3.18205968]
[1755285094789,7.725,4392.5,4392.4,3.18205968]
[1755285095404,4.0,4392.5,4392.4,3.18205968]
[1755285095590,7.725,4392.5,4392.4,3.18205968]
[1755285097738,4.0,4392.5,4392.4,3.18205968]
[1755285097932,4.0,4392.5,4392.4,3.74140196]
[1755285098847,4.0,4392.5,4392.4,6.74140196]
[1755285101061,1.28103925,4393.4,4393.3,2.27619329]
[1755285101209,5.00303925,4393.4,4393.3,2.27619329]
[1755285101405,5.00303925,4393.4,4393.3,3.29669329]
[1755285101610,5.00303925,4393.4,4393.3,3.85398888]
[1755285102307,1.28103925,4393.4,4393.3,3.85398888]
[1755285102541,1.28103925,4393.4,4393.3,6.85398888]
[1755285105014,0.002,4393.7,4393.6,2.27603787]
[1755285105534,0.002,4393.7,4393.6,3.29653787]
[1755285105724,0.002,4393.7,4393.6,4.4371514]
[1755285111735,0.002,4393.7,4393.6,7.4371514]
[1755285112563,0.1156,4394.7,4393.6,7.4371514]
[1755285112564,0.002,4394.7,4393.7,3.0]
[1755285112867,0.002,4394.7,4394.6,2.27551995]
[1755285113066,0.002,4394.7,4394.6,2.38911995]
[1755285113257,0.002,4394.7,4394.6,7.00206555]
[1755285115246,0.002,4394.7,4394.6,7.55206555]
[1755285115956,0.002,4395.1,4395.0,2.27531285]
[1755285116475,0.002,4395.1,4395.0,6.29581285]
[1755285116965,1e-08,4395.1,4395.0,6.84581285]
[1755285117172,1e-08,4395.2,4395.1,5.27526108]
[1755285117331,1e-08,4395.2,4395.1,9.89416108]
[1755285117535,1e-08,4395.2,4395.1,9.54355667]
[1755285117733,1e-08,4395.2,4395.1,9.97875667]
[1755285117933,1e-08,4395.2,4395.1,9.54355667]
[1755285118162,1e-08,4395.2,4395.1,10.45045667]
[1755285118792,1e-08,4395.2,4395.1,9.97875667]
[1755285118967,1e-08,4395.2,4395.1,10.45045667]
[1755285120155,1e-08,4395.2,4395.1,11.00045667]
[1755285120361,1e-08,4395.2,4395.1,9.54255667]
[1755285120581,1e-08,4395.2,4395.1,5.83255667]
[1755285122871,1e-08,4395.2,4395.1,10.44745667]
[1755285124597,0.02,4397.4,4396.9,2.27432964]